[Event "Titled Tuesday Blitz December 27 Late 2022"]
[White "Rodriguez Fontecha, Marcos"]
[Black "Vovk, Orest"]
[WhiteFideId "2256576"]
[BlackFideId "14113490"]
[WhiteElo "2309"]
[BlackElo "2315"]
[Result "1-0"]
[Round "08"]
[TimeControl "180+2"]
[Date "2022.12.27"]
[WhiteClock "0:00:06"]
[BlackClock "0:00:07"]

1. Nf3 {[%clk 0:03:00]}  h6 {[%clk 0:02:54]} 2. h4 {[%clk 0:02:58]}  Nf6 {[%clk 0:02:52]} 3. d4 {[%clk 0:02:57]}  c5 {[%clk 0:02:50]} 4. d5 {[%clk 0:02:56]}  d6 {[%clk 0:02:50]} 5. Nc3 {[%clk 0:02:56]}  Bg4 {[%clk 0:02:48]} 6. e4 {[%clk 0:02:54]}  Nbd7 {[%clk 0:02:48]} 7. Be2 {[%clk 0:02:54]}  g6 {[%clk 0:02:45]} 8. Nd2 {[%clk 0:02:54]}  Bxe2 {[%clk 0:02:44]} 9. Qxe2 {[%clk 0:02:55]}  Bg7 {[%clk 0:02:44]} 10. Nc4 {[%clk 0:02:54]}  O-O {[%clk 0:02:41]} 11. a4 {[%clk 0:02:52]}  a6 {[%clk 0:02:35]} 12. a5 {[%clk 0:02:50]}  b5 {[%clk 0:02:34]} 13. axb6 {[%clk 0:02:51]}  Nxb6 {[%clk 0:02:34]} 14. Kf1 {[%clk 0:02:48]}  Nxc4 {[%clk 0:02:33]} 15. Qxc4 {[%clk 0:02:48]}  Ng4 {[%clk 0:02:33]} 16. Rh3 {[%clk 0:02:40]}  f5 {[%clk 0:02:31]} 17. exf5 {[%clk 0:02:18]}  Ne5 {[%clk 0:02:28]} 18. Qe2 {[%clk 0:02:08]}  Rxf5 {[%clk 0:02:28]} 19. Ne4 {[%clk 0:02:02]}  Qd7 {[%clk 0:02:27]} 20. Rxa6 {[%clk 0:01:55]}  Raf8 {[%clk 0:02:26]} 21. Kg1 {[%clk 0:01:47]}  c4 {[%clk 0:02:24]} 22. Raa3 {[%clk 0:01:40]}  Qb5 {[%clk 0:02:20]} 23. Qd1 {[%clk 0:01:29]}  Kh7 {[%clk 0:02:05]} 24. h5 {[%clk 0:01:29]}  g5 {[%clk 0:02:04]} 25. Rhg3 {[%clk 0:01:16]}  Qb6 {[%clk 0:01:56]} 26. Rae3 {[%clk 0:01:12]}  Nd7 {[%clk 0:01:45]} 27. c3 {[%clk 0:01:09]}  Be5 {[%clk 0:01:41]} 28. Rgf3 {[%clk 0:01:05]}  Bf4 {[%clk 0:01:41]} 29. Re2 {[%clk 0:00:57]}  Ne5 {[%clk 0:01:41]} 30. Rxf4 {[%clk 0:00:55]}  gxf4 {[%clk 0:01:41]} 31. Rc2 {[%clk 0:00:34]}  Nd3 {[%clk 0:01:35]} 32. Kf1 {[%clk 0:00:30]}  Rxd5 {[%clk 0:01:33]} 33. Qg4 {[%clk 0:00:26]}  Ne5 {[%clk 0:01:26]} 34. Qe6 {[%clk 0:00:22]}  Qb7 {[%clk 0:01:20]} 35. Rd2 {[%clk 0:00:19]}  Rxd2 {[%clk 0:01:19]} 36. Nxd2 {[%clk 0:00:19]}  Rf6 {[%clk 0:01:16]} 37. Qh3 {[%clk 0:00:17]}  Nd3 {[%clk 0:01:10]} 38. f3 {[%clk 0:00:06]}  Nxc1 {[%clk 0:01:08]} 39. Ne4 {[%clk 0:00:07]}  Nd3 {[%clk 0:00:50]} 40. Nxf6+ {[%clk 0:00:07]}  exf6 {[%clk 0:00:51]} 41. Qf5+ {[%clk 0:00:07]}  Kh8 {[%clk 0:00:51]} 42. Qxf6+ {[%clk 0:00:08]}  Qg7 {[%clk 0:00:48]} 43. Qxd6 {[%clk 0:00:08]}  Qe5 {[%clk 0:00:37]} 44. Qxh6+ {[%clk 0:00:07]}  Kg8 {[%clk 0:00:37]} 45. Qg6+ {[%clk 0:00:08]}  Kf8 {[%clk 0:00:37]} 46. Qh6+ {[%clk 0:00:02]}  Ke7 {[%clk 0:00:35]} 47. Qh7+ {[%clk 0:00:02]}  Kd6 {[%clk 0:00:33]} 48. Qg6+ {[%clk 0:00:02]}  Kc5 {[%clk 0:00:30]} 49. Qe4 {[%clk 0:00:02]}  Qxh5 {[%clk 0:00:25]} 50. Qd4+ {[%clk 0:00:03]}  Kb5 {[%clk 0:00:25]} 51. Qd7+ {[%clk 0:00:03]}  Kb6 {[%clk 0:00:24]} 52. Qd8+ {[%clk 0:00:03]}  Kc6 {[%clk 0:00:20]} 53. Qc8+ {[%clk 0:00:03]}  Kd6 {[%clk 0:00:19]} 54. Qxc4 {[%clk 0:00:03]}  Qh1+ {[%clk 0:00:18]} 55. Ke2 {[%clk 0:00:03]}  Nc1+ {[%clk 0:00:19]} 56. Kd2 {[%clk 0:00:03]}  Qg1 {[%clk 0:00:15]} 57. Qxf4+ {[%clk 0:00:04]}  Kc6 {[%clk 0:00:13]} 58. Qe4+ {[%clk 0:00:04]}  Kb5 {[%clk 0:00:12]} 59. Qd5+ {[%clk 0:00:04]}  Ka6 {[%clk 0:00:10]} 60. Qe6+ {[%clk 0:00:03]}  Kb7 {[%clk 0:00:09]} 61. Qd7+ {[%clk 0:00:04]}  Kb6 {[%clk 0:00:09]} 62. Qd4+ {[%clk 0:00:04]}  Qxd4+ {[%clk 0:00:08]} 63. cxd4 {[%clk 0:00:05]}  Nb3+ {[%clk 0:00:08]} 64. Kc3 {[%clk 0:00:06]}  Na5 {[%clk 0:00:07]} 65. d5 {[%clk 0:00:06]}  Kc5 {[%clk 0:00:07]} 66. b4+ {[%clk 0:00:06]} 1-0


[Site "https://www.chess.com"]

[Event "Titled Tuesday Blitz December 27 Late 2022"]
[White "Rustemov, Alexander"]
[Black "Bortnyk, Olexandr"]
[WhiteFideId "4119002"]
[BlackFideId "14120828"]
[WhiteElo "2525"]
[BlackElo "2605"]
[Result "0-1"]
[Round "08"]
[TimeControl "180+2"]
[Date "2022.12.27"]
[WhiteClock "0:00:07"]
[BlackClock "0:00:03"]

1. d4 {[%clk 0:02:57]}  g6 {[%clk 0:02:54]} 2. c4 {[%clk 0:02:58]}  Bg7 {[%clk 0:02:55]} 3. Nf3 {[%clk 0:02:58]}  c5 {[%clk 0:02:49]} 4. d5 {[%clk 0:02:57]}  d6 {[%clk 0:02:47]} 5. e4 {[%clk 0:02:57]}  f5 {[%clk 0:02:45]} 6. exf5 {[%clk 0:02:51]}  Bxf5 {[%clk 0:02:46]} 7. Bd3 {[%clk 0:02:51]}  Bg4 {[%clk 0:02:11]} 8. h3 {[%clk 0:02:47]}  Bxf3 {[%clk 0:02:09]} 9. Qxf3 {[%clk 0:02:47]}  Nf6 {[%clk 0:02:10]} 10. Nc3 {[%clk 0:02:41]}  O-O {[%clk 0:02:10]} 11. Qe2 {[%clk 0:02:39]}  Na6 {[%clk 0:02:01]} 12. O-O {[%clk 0:02:38]}  Nc7 {[%clk 0:02:00]} 13. Re1 {[%clk 0:02:35]}  Qd7 {[%clk 0:01:59]} 14. Bg5 {[%clk 0:02:25]}  Rae8 {[%clk 0:01:59]} 15. Qd2 {[%clk 0:02:19]}  e5 {[%clk 0:01:54]} 16. dxe6 {[%clk 0:02:11]}  Nxe6 {[%clk 0:01:53]} 17. Bxf6 {[%clk 0:02:06]}  Bxf6 {[%clk 0:01:54]} 18. Nd5 {[%clk 0:02:06]}  Bd4 {[%clk 0:01:52]} 19. Re2 {[%clk 0:02:03]}  Nc7 {[%clk 0:01:36]} 20. Rxe8 {[%clk 0:01:26]}  Nxe8 {[%clk 0:01:36]} 21. Rf1 {[%clk 0:01:23]}  Nf6 {[%clk 0:01:37]} 22. Nxf6+ {[%clk 0:01:21]}  Rxf6 {[%clk 0:01:37]} 23. Be4 {[%clk 0:01:20]}  Kg7 {[%clk 0:01:36]} 24. b3 {[%clk 0:01:17]}  b5 {[%clk 0:01:27]} 25. Bd5 {[%clk 0:01:14]}  b4 {[%clk 0:01:25]} 26. Kh2 {[%clk 0:01:11]}  h5 {[%clk 0:01:18]} 27. g3 {[%clk 0:01:10]}  h4 {[%clk 0:01:16]} 28. Qe2 {[%clk 0:01:00]}  a5 {[%clk 0:00:53]} 29. Kg2 {[%clk 0:01:00]}  Qf5 {[%clk 0:00:15]} 30. Qe4 {[%clk 0:00:30]}  Qxe4+ {[%clk 0:00:11]} 31. Bxe4 {[%clk 0:00:31]}  Re6 {[%clk 0:00:11]} 32. Re1 {[%clk 0:00:26]}  hxg3 {[%clk 0:00:06]} 33. fxg3 {[%clk 0:00:25]}  Re7 {[%clk 0:00:06]} 34. Re2 {[%clk 0:00:25]}  Ra7 {[%clk 0:00:04]} 35. Bc6 {[%clk 0:00:24]}  Be5 {[%clk 0:00:04]} 36. h4 {[%clk 0:00:23]}  Ra6 {[%clk 0:00:03]} 37. Bb5 {[%clk 0:00:19]}  Rb6 {[%clk 0:00:03]} 38. Bd7 {[%clk 0:00:18]}  Rb7 {[%clk 0:00:04]} 39. Bc6 {[%clk 0:00:18]}  Rc7 {[%clk 0:00:04]} 40. Bd5 {[%clk 0:00:17]}  Ra7 {[%clk 0:00:05]} 41. g4 {[%clk 0:00:13]}  a4 {[%clk 0:00:05]} 42. Re3 {[%clk 0:00:13]}  g5 {[%clk 0:00:03]} 43. h5 {[%clk 0:00:12]}  axb3 {[%clk 0:00:03]} 44. axb3 {[%clk 0:00:12]}  Ra2+ {[%clk 0:00:03]} 45. Kf1 {[%clk 0:00:11]}  Rb2 {[%clk 0:00:03]} 46. Rf3 {[%clk 0:00:11]}  Bf4 {[%clk 0:00:03]} 47. Rxf4 {[%clk 0:00:06]}  gxf4 {[%clk 0:00:02]} 48. g5 {[%clk 0:00:07]}  Rxb3 {[%clk 0:00:02]} 49. h6+ {[%clk 0:00:07]}  Kg6 {[%clk 0:00:03]} 0-1


[Site "https://www.chess.com"]

[Event "Titled Tuesday Blitz December 27 Late 2022"]
[White "Samsonkin, Artiom"]
[Black "Wu, Brandon"]
[WhiteFideId "13503111"]
[BlackFideId "30909228"]
[WhiteElo "2420"]
[BlackElo "2123"]
[Result "1-0"]
[Round "08"]
[TimeControl "180+2"]
[Date "2022.12.27"]
[WhiteClock "0:00:30"]
[BlackClock "0:00:21"]

1. d4 {[%clk 0:02:58]}  Nf6 {[%clk 0:03:00]} 2. Bf4 {[%clk 0:02:58]}  c5 {[%clk 0:02:59]} 3. dxc5 {[%clk 0:02:58]}  Nc6 {[%clk 0:02:59]} 4. Nf3 {[%clk 0:02:52]}  Qa5+ {[%clk 0:02:55]} 5. Nc3 {[%clk 0:02:48]}  Qxc5 {[%clk 0:02:54]} 6. e4 {[%clk 0:02:48]}  d6 {[%clk 0:02:49]} 7. Bd3 {[%clk 0:02:33]}  g6 {[%clk 0:02:44]} 8. O-O {[%clk 0:02:04]}  Bg7 {[%clk 0:02:44]} 9. h3 {[%clk 0:02:04]}  O-O {[%clk 0:02:44]} 10. Qd2 {[%clk 0:02:05]}  Rd8 {[%clk 0:02:32]} 11. Be3 {[%clk 0:01:54]}  Qa5 {[%clk 0:02:30]} 12. Nd4 {[%clk 0:01:45]}  Nxd4 {[%clk 0:02:18]} 13. Bxd4 {[%clk 0:01:46]}  Qb4 {[%clk 0:02:15]} 14. Be3 {[%clk 0:01:34]}  Be6 {[%clk 0:01:41]} 15. a3 {[%clk 0:01:33]}  Qa5 {[%clk 0:01:23]} 16. f4 {[%clk 0:01:29]}  Rac8 {[%clk 0:01:14]} 17. Rad1 {[%clk 0:01:24]}  a6 {[%clk 0:00:59]} 18. Qf2 {[%clk 0:01:19]}  Bc4 {[%clk 0:00:58]} 19. Bb6 {[%clk 0:01:17]}  Qh5 {[%clk 0:00:56]} 20. Bxd8 {[%clk 0:01:16]}  Bxd3 {[%clk 0:00:56]} 21. Rxd3 {[%clk 0:01:13]}  Rxd8 {[%clk 0:00:57]} 22. e5 {[%clk 0:01:13]}  Ne8 {[%clk 0:00:49]} 23. Nd5 {[%clk 0:01:09]}  Kf8 {[%clk 0:00:46]} 24. Nb6 {[%clk 0:00:46]}  Qf5 {[%clk 0:00:38]} 25. Rfd1 {[%clk 0:00:44]}  Qe4 {[%clk 0:00:35]} 26. Rd4 {[%clk 0:00:42]}  Qc6 {[%clk 0:00:35]} 27. Nc4 {[%clk 0:00:42]}  b5 {[%clk 0:00:33]} 28. Na5 {[%clk 0:00:37]}  Qc7 {[%clk 0:00:31]} 29. Nb3 {[%clk 0:00:37]}  a5 {[%clk 0:00:30]} 30. Rd5 {[%clk 0:00:31]}  a4 {[%clk 0:00:26]} 31. Nd4 {[%clk 0:00:31]}  dxe5 {[%clk 0:00:23]} 32. Rxd8 {[%clk 0:00:31]}  Qxd8 {[%clk 0:00:22]} 33. Ne6+ {[%clk 0:00:31]}  fxe6 {[%clk 0:00:22]} 34. Rxd8 {[%clk 0:00:32]}  e4 {[%clk 0:00:21]} 35. Qe2 {[%clk 0:00:31]}  Kf7 {[%clk 0:00:21]} 36. Qxb5 {[%clk 0:00:30]}  Nf6 {[%clk 0:00:22]} 37. Qxa4 {[%clk 0:00:30]}  e3 {[%clk 0:00:22]} 38. Kf1 {[%clk 0:00:30]}  Nd5 {[%clk 0:00:20]} 39. Rxd5 {[%clk 0:00:29]}  exd5 {[%clk 0:00:20]} 40. Ke2 {[%clk 0:00:30]}  d4 {[%clk 0:00:21]} 41. Qc4+ {[%clk 0:00:30]} 1-0


[Site "https://www.chess.com"]

[Event "Titled Tuesday Blitz December 27 Late 2022"]
[White "Shapiro, Daniel"]
[Black "Bochnicka, Vladimir"]
[WhiteFideId "2001780"]
[BlackFideId "14943450"]
[WhiteElo "2284"]
[BlackElo "2327"]
[Result "0-1"]
[Round "08"]
[TimeControl "180+2"]
[Date "2022.12.27"]
[WhiteClock "0:00:22"]
[BlackClock "0:00:47"]

1. d4 {[%clk 0:03:00]}  Nf6 {[%clk 0:02:58]} 2. c4 {[%clk 0:03:00]}  g6 {[%clk 0:02:59]} 3. Nc3 {[%clk 0:03:00]}  Bg7 {[%clk 0:03:00]} 4. e4 {[%clk 0:02:58]}  d6 {[%clk 0:03:00]} 5. Be2 {[%clk 0:02:59]}  O-O {[%clk 0:03:01]} 6. Nf3 {[%clk 0:02:59]}  e5 {[%clk 0:03:01]} 7. O-O {[%clk 0:02:59]}  Nc6 {[%clk 0:03:01]} 8. d5 {[%clk 0:02:59]}  Ne7 {[%clk 0:03:02]} 9. a4 {[%clk 0:03:00]}  a5 {[%clk 0:03:01]} 10. b3 {[%clk 0:02:54]}  Nd7 {[%clk 0:03:00]} 11. Ne1 {[%clk 0:02:48]}  f5 {[%clk 0:02:57]} 12. f3 {[%clk 0:02:48]}  f4 {[%clk 0:02:57]} 13. Ba3 {[%clk 0:02:48]}  b6 {[%clk 0:02:57]} 14. b4 {[%clk 0:02:47]}  g5 {[%clk 0:02:53]} 15. bxa5 {[%clk 0:02:45]}  Rxa5 {[%clk 0:02:53]} 16. Bb4 {[%clk 0:02:44]}  Ra8 {[%clk 0:02:53]} 17. a5 {[%clk 0:02:44]}  bxa5 {[%clk 0:02:48]} 18. Bxa5 {[%clk 0:02:44]}  Ng6 {[%clk 0:02:36]} 19. Nb5 {[%clk 0:02:31]}  Rxa5 {[%clk 0:01:32]} 20. Rxa5 {[%clk 0:02:32]}  Nf6 {[%clk 0:01:25]} 21. Ra7 {[%clk 0:01:50]}  Rf7 {[%clk 0:01:17]} 22. Qa4 {[%clk 0:01:48]}  g4 {[%clk 0:01:03]} 23. Qa5 {[%clk 0:01:39]}  Ne8 {[%clk 0:00:57]} 24. Nd3 {[%clk 0:01:28]}  g3 {[%clk 0:00:52]} 25. Rb1 {[%clk 0:00:25]}  Qh4 {[%clk 0:00:51]} 26. h3 {[%clk 0:00:21]}  Bxh3 {[%clk 0:00:50]} 27. Bf1 {[%clk 0:00:22]}  Bd7 {[%clk 0:00:47]} 0-1


[Site "https://www.chess.com"]

[Event "Titled Tuesday Blitz December 27 Late 2022"]
[White "Sreyas Payyappat"]
[Black "Hernandez Bonilla, Amelia"]
[WhiteFideId "46674969"]
[BlackFideId "3900193"]
[WhiteElo "2076"]
[BlackElo "1960"]
[Result "1-0"]
[Round "08"]
[TimeControl "180+2"]
[Date "2022.12.27"]
[WhiteClock "0:00:57"]
[BlackClock "0:00:09"]

1. e4 {[%clk 0:03:00]}  c5 {[%clk 0:02:59]} 2. Nf3 {[%clk 0:03:01]}  d6 {[%clk 0:03:00]} 3. d4 {[%clk 0:03:01]}  cxd4 {[%clk 0:03:01]} 4. Nxd4 {[%clk 0:03:02]}  Nf6 {[%clk 0:03:01]} 5. Nc3 {[%clk 0:03:02]}  Nc6 {[%clk 0:03:01]} 6. Bg5 {[%clk 0:02:59]}  e6 {[%clk 0:03:01]} 7. Qd2 {[%clk 0:02:55]}  Bd7 {[%clk 0:03:01]} 8. O-O-O {[%clk 0:02:54]}  a6 {[%clk 0:03:01]} 9. f4 {[%clk 0:02:51]}  b5 {[%clk 0:02:58]} 10. a3 {[%clk 0:02:39]}  h6 {[%clk 0:02:53]} 11. Bxf6 {[%clk 0:02:33]}  Qxf6 {[%clk 0:02:43]} 12. Nxc6 {[%clk 0:02:31]}  Bxc6 {[%clk 0:02:43]} 13. Bd3 {[%clk 0:02:28]}  Qd8 {[%clk 0:02:23]} 14. Rhf1 {[%clk 0:02:25]}  Be7 {[%clk 0:02:23]} 15. Rde1 {[%clk 0:02:24]}  O-O {[%clk 0:02:22]} 16. f5 {[%clk 0:02:22]}  Bg5 {[%clk 0:02:16]} 17. Re3 {[%clk 0:02:21]}  Qb6 {[%clk 0:02:09]} 18. Nd1 {[%clk 0:02:16]}  exf5 {[%clk 0:01:59]} 19. Rxf5 {[%clk 0:02:01]}  Bxe3 {[%clk 0:01:48]} 20. Nxe3 {[%clk 0:01:59]}  Rfe8 {[%clk 0:01:40]} 21. Rf4 {[%clk 0:01:42]}  Qd4 {[%clk 0:01:27]} 22. Nf5 {[%clk 0:01:39]}  Qg1+ {[%clk 0:01:25]} 23. Rf1 {[%clk 0:01:36]}  Qxh2 {[%clk 0:01:21]} 24. Qc3 {[%clk 0:01:35]}  Qe5 {[%clk 0:00:55]} 25. Qxc6 {[%clk 0:01:34]}  Red8 {[%clk 0:00:37]} 26. Qb7 {[%clk 0:01:28]}  Qe6 {[%clk 0:00:26]} 27. Nd4 {[%clk 0:01:25]}  Qg6 {[%clk 0:00:20]} 28. e5 {[%clk 0:01:23]}  Qg5+ {[%clk 0:00:19]} 29. Kb1 {[%clk 0:01:22]}  dxe5 {[%clk 0:00:18]} 30. Qxf7+ {[%clk 0:01:18]}  Kh8 {[%clk 0:00:17]} 31. Ne6 {[%clk 0:01:16]}  Qxg2 {[%clk 0:00:17]} 32. Nxd8 {[%clk 0:01:06]}  Rxd8 {[%clk 0:00:15]} 33. Qf5 {[%clk 0:01:00]}  Rxd3 {[%clk 0:00:09]} 34. Qxd3 {[%clk 0:00:57]} 1-0


[Site "https://www.chess.com"]

[Event "Titled Tuesday Blitz December 27 Late 2022"]
[White "Subelj, Jan"]
[Black "Karas, Marek"]
[WhiteFideId "14618583"]
[BlackFideId "14928558"]
[WhiteElo "2513"]
[BlackElo "2227"]
[Result "0-1"]
[Round "08"]
[TimeControl "180+2"]
[Date "2022.12.27"]
[WhiteClock "0:01:05"]
[BlackClock "0:00:58"]

1. g3 {[%clk 0:03:00]}  e5 {[%clk 0:02:58]} 2. Bg2 {[%clk 0:03:01]}  Nc6 {[%clk 0:02:57]} 3. c3 {[%clk 0:03:02]}  Nf6 {[%clk 0:02:57]} 4. d4 {[%clk 0:03:03]}  d5 {[%clk 0:02:56]} 5. dxe5 {[%clk 0:02:59]}  Nxe5 {[%clk 0:02:57]} 6. Nf3 {[%clk 0:02:59]}  Nxf3+ {[%clk 0:02:57]} 7. exf3 {[%clk 0:03:00]}  c6 {[%clk 0:02:57]} 8. O-O {[%clk 0:02:58]}  Be7 {[%clk 0:02:57]} 9. Re1 {[%clk 0:02:57]}  O-O {[%clk 0:02:58]} 10. Nd2 {[%clk 0:02:57]}  Bf5 {[%clk 0:02:57]} 11. Nb3 {[%clk 0:02:55]}  Re8 {[%clk 0:02:55]} 12. Nd4 {[%clk 0:02:55]}  Bg6 {[%clk 0:02:55]} 13. h4 {[%clk 0:02:52]}  Bf8 {[%clk 0:02:54]} 14. Rxe8 {[%clk 0:02:51]}  Qxe8 {[%clk 0:02:55]} 15. g4 {[%clk 0:02:51]}  h6 {[%clk 0:02:48]} 16. Ne2 {[%clk 0:02:50]}  Bd6 {[%clk 0:02:44]} 17. Bf4 {[%clk 0:02:50]}  Bxf4 {[%clk 0:02:43]} 18. Nxf4 {[%clk 0:02:50]}  Qe5 {[%clk 0:02:42]} 19. Qd2 {[%clk 0:02:49]}  Re8 {[%clk 0:02:41]} 20. Kf1 {[%clk 0:02:43]}  Bh7 {[%clk 0:02:34]} 21. Re1 {[%clk 0:02:34]}  Qxe1+ {[%clk 0:02:32]} 22. Qxe1 {[%clk 0:02:35]}  Rxe1+ {[%clk 0:02:31]} 23. Kxe1 {[%clk 0:02:36]}  Kf8 {[%clk 0:02:27]} 24. Kd2 {[%clk 0:02:35]}  Ke7 {[%clk 0:02:26]} 25. g5 {[%clk 0:02:24]}  hxg5 {[%clk 0:02:25]} 26. hxg5 {[%clk 0:02:25]}  Nd7 {[%clk 0:02:26]} 27. Ne2 {[%clk 0:02:23]}  Ne5 {[%clk 0:02:23]} 28. b3 {[%clk 0:02:14]}  Kd6 {[%clk 0:02:21]} 29. f4 {[%clk 0:02:14]}  Nd7 {[%clk 0:02:14]} 30. Bh3 {[%clk 0:02:14]}  Nc5 {[%clk 0:02:11]} 31. f3 {[%clk 0:02:14]}  Bb1 {[%clk 0:02:07]} 32. b4 {[%clk 0:02:08]}  Ne6 {[%clk 0:02:01]} 33. a3 {[%clk 0:02:04]}  b6 {[%clk 0:01:58]} 34. Ke3 {[%clk 0:01:57]}  c5 {[%clk 0:01:57]} 35. bxc5+ {[%clk 0:01:52]}  bxc5 {[%clk 0:01:58]} 36. Bxe6 {[%clk 0:01:49]}  fxe6 {[%clk 0:01:48]} 37. Ng3 {[%clk 0:01:48]}  g6 {[%clk 0:01:43]} 38. Nh1 {[%clk 0:01:48]}  Bf5 {[%clk 0:01:34]} 39. Nf2 {[%clk 0:01:48]}  Kc6 {[%clk 0:01:34]} 40. Ng4 {[%clk 0:01:41]}  Kb5 {[%clk 0:01:31]} 41. Ne5 {[%clk 0:01:36]}  Ka4 {[%clk 0:01:26]} 42. Nc6 {[%clk 0:01:31]}  a6 {[%clk 0:01:25]} 43. Nb8 {[%clk 0:01:30]}  a5 {[%clk 0:01:19]} 44. Nc6 {[%clk 0:01:30]}  Kb3 {[%clk 0:01:10]} 45. Nxa5+ {[%clk 0:01:26]}  Kxc3 {[%clk 0:01:10]} 46. Ke2 {[%clk 0:01:20]}  d4 {[%clk 0:01:03]} 47. Nb7 {[%clk 0:01:07]}  d3+ {[%clk 0:00:59]} 48. Kd1 {[%clk 0:01:07]}  d2 {[%clk 0:00:58]} 49. Nxc5 {[%clk 0:01:05]}  Bc2+ {[%clk 0:00:58]} 0-1


[Site "https://www.chess.com"]

[Event "Titled Tuesday Blitz December 27 Late 2022"]
[White "Sukandar, Irine Kharisma"]
[Black "Vakhlamov, Igor L."]
[WhiteFideId "7101937"]
[BlackFideId "24126748"]
[WhiteElo "2390"]
[BlackElo "2413"]
[Result "0-1"]
[Round "08"]
[TimeControl "180+2"]
[Date "2022.12.27"]
[WhiteClock "0:00:51"]
[BlackClock "0:01:06"]

1. e4 {[%clk 0:03:00]}  c5 {[%clk 0:02:59]} 2. Nc3 {[%clk 0:02:59]}  g6 {[%clk 0:02:58]} 3. d4 {[%clk 0:02:58]}  cxd4 {[%clk 0:02:59]} 4. Qxd4 {[%clk 0:02:59]}  Nf6 {[%clk 0:03:00]} 5. Nf3 {[%clk 0:02:58]}  Nc6 {[%clk 0:02:59]} 6. Qa4 {[%clk 0:02:58]}  d6 {[%clk 0:02:55]} 7. e5 {[%clk 0:02:58]}  Ng4 {[%clk 0:02:55]} 8. Bb5 {[%clk 0:02:48]}  Nxe5 {[%clk 0:02:51]} 9. Nxe5 {[%clk 0:02:45]}  dxe5 {[%clk 0:02:52]} 10. Bxc6+ {[%clk 0:02:45]}  bxc6 {[%clk 0:02:51]} 11. Qxc6+ {[%clk 0:02:45]}  Bd7 {[%clk 0:02:52]} 12. Qd5 {[%clk 0:02:41]}  Bg7 {[%clk 0:02:51]} 13. Bg5 {[%clk 0:02:39]}  Qc8 {[%clk 0:02:41]} 14. O-O {[%clk 0:02:31]}  Rb8 {[%clk 0:02:35]} 15. Ne4 {[%clk 0:02:20]}  Bc6 {[%clk 0:02:27]} 16. Qc5 {[%clk 0:02:16]}  f6 {[%clk 0:02:22]} 17. Bxf6 {[%clk 0:01:52]}  Bxf6 {[%clk 0:02:22]} 18. Nxf6+ {[%clk 0:01:52]}  exf6 {[%clk 0:02:23]} 19. Qd6 {[%clk 0:01:44]}  Kf7 {[%clk 0:02:14]} 20. f4 {[%clk 0:01:44]}  Rd8 {[%clk 0:02:11]} 21. Qc5 {[%clk 0:01:43]}  Rd2 {[%clk 0:01:54]} 22. Rf2 {[%clk 0:01:42]}  Rxf2 {[%clk 0:01:54]} 23. Kxf2 {[%clk 0:01:42]}  exf4 {[%clk 0:01:52]} 24. Re1 {[%clk 0:01:40]}  Rb7 {[%clk 0:01:47]} 25. Qc4+ {[%clk 0:01:37]}  Kg7 {[%clk 0:01:46]} 26. Re6 {[%clk 0:01:37]}  Rc7 {[%clk 0:01:44]} 27. Rd6 {[%clk 0:01:31]}  Bxg2 {[%clk 0:01:39]} 28. Qxf4 {[%clk 0:01:31]}  Rxc2+ {[%clk 0:01:32]} 29. Kg3 {[%clk 0:01:31]}  Qf5 {[%clk 0:01:26]} 30. Qxf5 {[%clk 0:01:15]}  gxf5 {[%clk 0:01:27]} 31. Rd7+ {[%clk 0:01:16]}  Kg6 {[%clk 0:01:27]} 32. Rxa7 {[%clk 0:01:15]}  Rxb2 {[%clk 0:01:27]} 33. h4 {[%clk 0:01:14]}  Bd5 {[%clk 0:01:24]} 34. a3 {[%clk 0:01:14]}  Rg2+ {[%clk 0:01:23]} 35. Kf4 {[%clk 0:01:13]}  Rg4+ {[%clk 0:01:23]} 36. Ke3 {[%clk 0:01:13]}  Rxh4 {[%clk 0:01:24]} 37. Rd7 {[%clk 0:01:12]}  f4+ {[%clk 0:01:21]} 38. Kf2 {[%clk 0:01:12]}  Be4 {[%clk 0:01:20]} 39. Rd4 {[%clk 0:01:07]}  f5 {[%clk 0:01:18]} 40. a4 {[%clk 0:01:06]}  Rh2+ {[%clk 0:01:17]} 41. Kf1 {[%clk 0:01:05]}  Ra2 {[%clk 0:01:18]} 42. Rb4 {[%clk 0:01:01]}  Kg5 {[%clk 0:01:18]} 43. Rb8 {[%clk 0:01:00]}  f3 {[%clk 0:01:16]} 44. a5 {[%clk 0:00:58]}  Rxa5 {[%clk 0:01:15]} 45. Rb2 {[%clk 0:00:55]}  Kf4 {[%clk 0:01:14]} 46. Kf2 {[%clk 0:00:56]}  h5 {[%clk 0:01:13]} 47. Kg1 {[%clk 0:00:50]}  Rc5 {[%clk 0:01:10]} 48. Kh2 {[%clk 0:00:50]}  Rc2+ {[%clk 0:01:08]} 49. Rxc2 {[%clk 0:00:51]}  Bxc2 {[%clk 0:01:09]} 50. Kh3 {[%clk 0:00:51]}  f2 {[%clk 0:01:07]} 51. Kg2 {[%clk 0:00:52]}  Ke3 {[%clk 0:01:07]} 52. Kg3 {[%clk 0:00:51]}  f4+ {[%clk 0:01:07]} 53. Kh4 {[%clk 0:00:51]}  f3 {[%clk 0:01:06]} 0-1


[Site "https://www.chess.com"]

[Event "Titled Tuesday Blitz December 27 Late 2022"]
[White "Talibov, Shiroghlan"]
[Black "Kamsky, Gata"]
[WhiteFideId "13429078"]
[BlackFideId "2000024"]
[WhiteElo "2359"]
[BlackElo "2665"]
[Result "1/2-1/2"]
[Round "08"]
[TimeControl "180+2"]
[Date "2022.12.27"]
[WhiteClock "0:01:17"]
[BlackClock "0:01:09"]

1. c4 {[%clk 0:03:00]}  Nf6 {[%clk 0:02:50]} 2. Nc3 {[%clk 0:03:01]}  g6 {[%clk 0:02:49]} 3. e4 {[%clk 0:03:00]}  d6 {[%clk 0:02:49]} 4. d4 {[%clk 0:02:58]}  Bg7 {[%clk 0:02:49]} 5. h3 {[%clk 0:02:57]}  e5 {[%clk 0:02:48]} 6. d5 {[%clk 0:02:57]}  a5 {[%clk 0:02:45]} 7. Be2 {[%clk 0:02:56]}  Na6 {[%clk 0:02:45]} 8. Be3 {[%clk 0:02:54]}  Nc5 {[%clk 0:02:44]} 9. Qc2 {[%clk 0:02:55]}  Qe7 {[%clk 0:02:34]} 10. Nf3 {[%clk 0:02:54]}  Nh5 {[%clk 0:02:32]} 11. g3 {[%clk 0:02:52]}  f5 {[%clk 0:02:27]} 12. Nd2 {[%clk 0:02:43]}  Nf6 {[%clk 0:02:19]} 13. O-O-O {[%clk 0:02:43]}  Nfxe4 {[%clk 0:02:05]} 14. Ndxe4 {[%clk 0:02:41]}  Nxe4 {[%clk 0:02:05]} 15. Nxe4 {[%clk 0:02:40]}  fxe4 {[%clk 0:02:06]} 16. g4 {[%clk 0:02:39]}  Bf6 {[%clk 0:02:02]} 17. Qxe4 {[%clk 0:02:32]}  Bg5 {[%clk 0:02:01]} 18. h4 {[%clk 0:02:30]}  Bxe3+ {[%clk 0:02:00]} 19. fxe3 {[%clk 0:02:31]}  Bd7 {[%clk 0:01:45]} 20. g5 {[%clk 0:01:58]}  O-O-O {[%clk 0:01:40]} 21. Bg4 {[%clk 0:01:57]}  Rdf8 {[%clk 0:01:37]} 22. Rdf1 {[%clk 0:01:57]}  Rxf1+ {[%clk 0:01:34]} 23. Rxf1 {[%clk 0:01:57]}  Rf8 {[%clk 0:01:33]} 24. Rf3 {[%clk 0:01:54]}  b6 {[%clk 0:01:29]} 25. Kd2 {[%clk 0:01:50]}  Rf7 {[%clk 0:01:20]} 26. Ke2 {[%clk 0:01:42]}  Qf8 {[%clk 0:01:19]} 27. Bxd7+ {[%clk 0:01:40]}  Kxd7 {[%clk 0:01:19]} 28. Rxf7+ {[%clk 0:01:33]}  Qxf7 {[%clk 0:01:18]} 29. Qf3 {[%clk 0:01:27]}  Qxf3+ {[%clk 0:01:17]} 30. Kxf3 {[%clk 0:01:28]}  c5 {[%clk 0:01:09]} 31. a4 {[%clk 0:01:17]} 1/2-1/2


[Site "https://www.chess.com"]